fUST/lending_fUST_20240501
["ID","MTS","AMOUNT","RATE_DAILY","PERIOD"]
[325185063,1714555838505,-1204.92164622,0.00020908,2]
[325185065,1714555838515,-475.3346953,0.00020909,2]
[325185066,1714555838524,-550.56357256,0.0002091,2]
[325185067,1714555838533,-605.82997984,0.00020911,2]
[325185068,1714555838542,-312.76862227,0.00020913,2]
[325185069,1714555838551,-166.666666,0.00021918,2]
[325185070,1714555838560,-159.24114282,0.00022,2]
[325185071,1714555838569,-166.666666,0.00022431,2]
[325185072,1714555838578,-166.666666,0.00022944,2]
[325185073,1714555838587,-714.26625523,0.00023,2]
[325185074,1714555838597,-166.666666,0.00023456,2]
[325185075,1714555838606,-166.666666,0.00023969,2]
[325185076,1714555838615,-166.666666,0.00024482,2]
[325185077,1714555838798,-154.65974855,0.00025,2]
[325185078,1714555838808,-15600.43,0.0002658,3]
[325185079,1714555838818,-1564.49780022,0.0002659,2]
[325185080,1714555838827,-154.65974855,0.0002659,2]
[325185081,1714555838836,-756.93644427,0.0002659,2]
[325185082,1714555838846,-10593.59324698,0.0002659,2]
[325185083,1714555838855,-1502.86294487,0.0003,7]
[325185084,1714555838865,-638.88710828,0.00032,4]
[325185085,1714555838874,-5000.0,0.00033,4]
[325185086,1714555838883,-466.46671286,0.00034,4]
[325185087,1714555838893,-854.25779961,0.00035,2]
[325185088,1714555838902,-214.65163076,0.00035,4]
[325185089,1714555838912,-5917.45193267,0.00035,4]
[325185090,1714555838923,-425.45157815,0.00035,10]
[325185091,1714555838932,-1753.71255042,0.00035,30]
[325185092,1714555838942,-2000.0,0.00035516,2]
[325185093,1714555838951,-13000.35,0.00035616,3]
[325185094,1714555838960,-10833.63,0.00035616,3]
[325185095,1714555838970,-2049.08470554,0.00037,2]
[325185096,1714555838979,-10664.09300882,0.00037,5]
[325185097,1714555838989,-239.19602788,0.00038,30]
[325185098,1714555838999,-607.4595,0.00039858,2]
[325185099,1714555839008,-607.91840391,0.0004,2]
[325185100,1714555839018,-6381.22460461,0.0004,4]
[325185101,1714555839027,-315.93873987,0.00041,2]
[325185102,1714555839036,-1522.2,0.00041485,3]
[325185103,1714555839045,-154.65974855,0.0004234,10]
[325185104,1714555839055,-1695.41656809,0.000425,30]
[325185105,1714555839063,-607.45951,0.0004281,2]
[325185106,1714555839073,-164.04387466,0.00044281,52]
[325185107,1714555839082,-200.0,0.00044281,60]
[325185108,1714555839091,-1531.45781548,0.00045,4]
[325185109,1714555839100,-607.4595,0.00045763,2]
[325185110,1714555839109,-300.0,0.000458,60]
[325185111,1714555839126,-1000.0,0.000468,120]
[325185112,1714555839135,-607.45951,0.00048715,2]
[325185113,1714555839144,-5000.0,0.00049151,30]
[325185114,1714555839153,-5374.0,0.00049836,60]
[325185115,1714555839164,-172.730414,0.00049863,2]
[325185116,1714555839175,-154.65974855,0.0005,30]
[325185117,1714555839184,-8562.38280706,0.0005,120]
[325185118,1714555839194,-607.4595,0.00051668,2]
[325185119,1714555839204,-150.69860279,0.00052258,2]
[325185120,1714555839214,-607.45951,0.0005462,2]
[325185121,1714555839223,-300.00000002,0.00056715,27]
[325185122,1714555839233,-2000.0,0.000568,120]
[325185123,1714555839243,-153.69519904,0.00056858,120]
[325185124,1714555839251,-31290.17909938,0.00057,61]
[325185125,1714555839261,-90802.4803376,0.00057,2]
[325185126,1714555839270,-6000.0,0.00057,120]
[325185127,1714555839280,-5999.99,0.00057,120]
[325185128,1714555839290,-159.0,0.00057218,120]
[325185129,1714555839301,-2921.0,0.000575,120]
[325185130,1714555839310,-151.32,0.00057502,35]
[325185131,1714555839319,-150.5,0.00057512,35]
[325185132,1714555839329,-213.75,0.00057512,35]
[325185133,1714555839339,-181.67,0.00057522,35]
[325185134,1714555839348,-150.5,0.00057522,35]
[325185135,1714555839358,-150.5,0.00057522,35]
[325185136,1714555839368,-151.0,0.00057532,120]
[325185137,1714555839378,-151.0,0.00057532,30]
[325185138,1714555839388,-151.0,0.00057532,120]
[325185139,1714555839399,-151.0,0.00057532,120]
[325185140,1714555839409,-151.0,0.00057532,120]
[325185141,1714555839422,-160.728456,0.00057532,120]
[325185142,1714555839432,-151.0,0.00057532,120]
[325185143,1714555839443,-151.0,0.00057532,120]
[325185144,1714555839455,-151.0,0.00057532,120]
[325185145,1714555839464,-151.0,0.00057532,120]
[325185146,1714555839474,-151.0,0.00057532,120]
[325185147,1714555839483,-151.26979,0.00057532,120]
[325185148,1714555839493,-151.26979,0.00057532,120]
[325185149,1714555839504,-151.0,0.00057532,120]
[325185150,1714555839513,-151.0,0.00057532,120]
[325185152,1714555839523,-350.653558,0.00057532,60]
[325185153,1714555839533,-350.653558,0.00057532,60]
[325185154,1714555839543,-151.0,0.00057532,14]
[325185155,1714555839552,-151.0,0.00057532,120]
[325185156,1714555839562,-151.0,0.00057532,120]
[325185157,1714555839571,-151.0,0.00057532,120]
[325185158,1714555839581,-247665.72116212,0.00057532,120]
[325185168,1714555841175,-10898.93235,0.00057532,120]
[325185169,1714555841308,-385.10922443,0.00019999,2]
[325185170,1714555841320,-4453.94282155,0.00019999,2]
[325185171,1714555841331,-800.0,0.00019999,2]
[325185254,1714555845511,273.37336231,9.9e-05,2]
[325185264,1714555846059,-3440.46,0.00019999,2]
[325185265,1714555846070,-50147.22751731,0.00019999,2]
[325185266,1714555846080,-9028.02,0.0003699,3]
[325185267,1714555846089,-242059.07042828,0.00057532,120]
[325185268,1714555846099,-500.0,0.00057534,120]
[325185269,1714555846108,-500.0,0.00057534,120]
[325185270,1714555846118,-435.03628223,0.00057534,120]
[325185271,1714555846130,-500.0,0.00057534,120]
[325185272,1714555846140,-500.0,0.00057534,120]
[325185273,1714555846150,-500.0,0.00057534,120]
[325185275,1714555846159,-917.82,0.00057534,120]
[325185277,1714555846170,-500.0,0.00057534,120]
[325185279,1714555846184,-500.0,0.00057534,120]
[325185282,1714555846193,-500.0,0.00057534,120]
[325185285,1714555846202,-500.0,0.00057534,120]
[325185290,1714555846213,-500.0,0.00057534,120]
[325185292,1714555846358,-500.0,0.00057534,120]
[325185294,1714555846368,-500.0,0.00057534,120]
[325185295,1714555846377,-196.09645269,0.00057534,30]
[325185296,1714555846387,-500.21294716,0.00057534,120]
[325185297,1714555846397,-500.0,0.00057534,120]
[325185298,1714555846406,-501.87296079,0.00057534,120]
[325185299,1714555846415,-1395.6,0.00057534,120]
[325185300,1714555846429,-601.0651819,0.00057534,120]
[325185301,1714555846438,-500.0,0.00057534,120]
[325185302,1714555846447,-517.0052444,0.00057534,120]
[325185303,1714555846456,-500.0,0.00057534,120]
[325185304,1714555846465,-1000.0,0.00057534,120]
[325185305,1714555846474,-500.0,0.00057534,120]
[325185306,1714555846484,-168.64781487,0.00057534,120]
[325185307,1714555846493,-500.0,0.00057534,120]
[325185308,1714555846503,-500.0,0.00057534,120]
[325185309,1714555846512,-500.0,0.00057534,120]
[325185310,1714555846521,-500.0,0.00057534,120]
[325185311,1714555846531,-500.0,0.00057534,120]
[325185312,1714555846540,-500.0,0.00057534,120]
[325185313,1714555846549,-1060.96,0.00057534,120]
[325185314,1714555846558,-500.0,0.00057534,120]
[325185315,1714555846567,-500.40941395,0.00057534,120]
[325185316,1714555846576,-519.44168803,0.00057534,120]
[325185317,1714555846586,-500.14455535,0.00057534,120]
[325185318,1714555846595,-500.0,0.00057534,120]
[325185319,1714555846604,-500.0,0.00057534,120]
[325185320,1714555846614,-500.0,0.00057534,120]
[325185321,1714555846623,-500.0,0.00057534,120]
[325185322,1714555846632,-500.0,0.00057534,120]
[325185323,1714555846642,-500.0,0.00057534,120]
[325185324,1714555846651,-500.0,0.00057534,120]
[325185325,1714555846661,-486.289533,0.00057534,120]
[325185326,1714555846670,-500.0,0.00057534,120]
[325185327,1714555846681,-500.0,0.00057534,120]
[325185328,1714555846690,-503.07929307,0.00057534,120]
[325185329,1714555846699,-500.0,0.00057534,120]
[325185330,1714555846709,-500.0,0.00057534,120]
[325185331,1714555846718,-500.0,0.00057534,120]
[325185332,1714555846728,-500.0,0.00057534,120]
[325185333,1714555846737,-516.03,0.00057534,120]
[325185334,1714555846747,-151.293733,0.00057534,120]
[325185335,1714555846756,-500.0,0.00057534,120]
[325185336,1714555846765,-500.0,0.00057534,120]
[325185337,1714555846774,-285.61855634,0.00057534,120]
[325185338,1714555846785,-500.0,0.00057534,120]
[325185339,1714555846795,-300.0,0.00057534,7]
[325185340,1714555846804,-500.0,0.00057534,120]
[325185341,1714555846814,-500.0,0.00057534,120]
[325185342,1714555846824,-500.0,0.00057534,120]
[325185343,1714555846834,-790.38,0.00057534,120]
[325185344,1714555846844,-500.0,0.00057534,120]
[325185345,1714555846853,-500.0,0.00057534,120]
[325185346,1714555846862,-419.47466898,0.00057534,120]
[325185347,1714555846872,-560.68,0.00057534,120]
[325185348,1714555846881,-500.0,0.00057534,120]
[325185349,1714555846891,-500.0,0.00057534,120]
[325185350,1714555846900,-400.85752307,0.00057534,120]
[325185351,1714555846910,-500.0,0.00057534,120]
[325185352,1714555846919,-1000.0,0.00057534,120]
[325185353,1714555846933,-500.0,0.00057534,120]
[325185354,1714555846943,-257.20328663,0.00057534,120]
[325185355,1714555846952,-500.0,0.00057534,120]
[325185356,1714555846962,-500.0,0.00057534,120]
[325185357,1714555846971,-500.0,0.00057534,120]
[325185358,1714555846981,-151.0,0.00057534,3]
[325185359,1714555846991,-500.0,0.00057534,120]
[325185360,1714555847000,-500.0,0.00057534,120]
[325185361,1714555847010,-500.0,0.00057534,120]
[325185362,1714555847020,-500.0,0.00057534,120]
[325185363,1714555847029,-500.0,0.00057534,120]
[325185364,1714555847038,-500.0,0.00057534,120]
[325185365,1714555847048,-500.0,0.00057534,120]
[325185366,1714555847057,-501.04028523,0.00057534,120]
[325185367,1714555847067,-500.48238821,0.00057534,120]
[325185368,1714555847077,-500.0,0.00057534,120]
[325185369,1714555847086,-500.51041036,0.00057534,120]
[325185370,1714555847096,-500.0,0.00057534,120]
[325185371,1714555847105,-500.0,0.00057534,120]
[325185372,1714555847114,-500.0,0.00057534,120]
[325185373,1714555847130,-500.0,0.00057534,120]
[325185374,1714555847141,-500.0,0.00057534,120]
[325185375,1714555847150,-767.85,0.00057534,120]
[325185376,1714555847159,-500.0,0.00057534,120]
[325185377,1714555847170,-500.0,0.00057534,120]
[325185378,1714555847184,-500.0,0.00057534,120]
[325185379,1714555847193,-500.0,0.00057534,120]
[325185380,1714555847203,-500.0,0.00057534,120]
[325185381,1714555847213,-500.0,0.00057534,120]
[325185382,1714555847223,-500.0,0.00057534,120]
[325185383,1714555847233,-1464.38,0.00057534,120]
[325185384,1714555847242,-500.0,0.00057534,120]
[325185385,1714555847252,-505.00090758,0.00057534,120]
[325185386,1714555847261,-501.04861927,0.00057534,120]
[325185387,1714555847271,-500.0,0.00057534,120]
[325185388,1714555847281,-622.41,0.00057534,120]
[325185389,1714555847290,-151.0,0.00057534,120]
[325185390,1714555847299,-500.0,0.00057534,120]
[325185391,1714555847308,-500.0,0.00057534,120]
[325185392,1714555847317,-761.52,0.00057534,120]
[325185393,1714555847326,-309.72125088,0.00057534,120]
[325185394,1714555847337,-500.0,0.00057534,120]
[325185395,1714555847347,-500.0,0.00057534,120]
[325185396,1714555847356,-500.0,0.00057534,120]
[325185397,1714555847366,-500.0,0.00057534,120]
[325185398,1714555847376,-500.0,0.00057534,120]
[325185399,1714555847387,-155.90002922,0.00057534,120]
[325185400,1714555847396,-500.0,0.00057534,120]
[325185401,1714555847406,-151.0,0.00057534,30]
[325185402,1714555847415,-500.0,0.00057534,120]
[325185403,1714555847424,-500.0,0.00057534,120]
[325185404,1714555847436,-763.28,0.00057534,120]
[325185405,1714555847445,-500.0,0.00057534,120]
[325185406,1714555847454,-500.0,0.00057534,120]
[325185407,1714555847463,-565.12,0.00057534,120]
[325185408,1714555847472,-500.0,0.00057534,120]
[325185409,1714555847482,-500.0,0.00057534,2]
[325185410,1714555847491,-711.69,0.00057534,120]
[325185411,1714555847500,-200.0,0.00057534,120]
[325185412,1714555847509,-500.0,0.00057534,120]
[325185413,1714555847518,-500.0,0.00057534,120]
[325185414,1714555847527,-513.51395336,0.00057534,120]
[325185415,1714555847537,-500.0,0.00057534,120]
[325185416,1714555847546,-500.0,0.00057534,120]
[325185417,1714555847555,-500.0,0.00057534,120]
[325185418,1714555847564,-151.0,0.00057534,120]
[325185419,1714555847573,-500.0,0.00057534,120]
[325185420,1714555847583,-364.62103571,0.00057534,120]
[325185421,1714555847592,-500.33522654,0.00057534,120]
[325185422,1714555847601,-685.27,0.00057534,7]
[325185423,1714555847611,-500.0,0.00057534,120]
[325185424,1714555847620,-151.0,0.00057534,120]
[325185425,1714555847629,-500.0,0.00057534,120]
[325185426,1714555847638,-500.0,0.00057534,120]
[325185427,1714555847648,-500.0,0.00057534,120]
[325185428,1714555847657,-500.0,0.00057534,120]
[325185429,1714555847670,-337.60044881,0.00057534,120]
[325185430,1714555847682,-500.0,0.00057534,120]
[325185431,1714555847691,-151.0,0.00057534,120]
[325185432,1714555847700,-500.0,0.00057534,120]
[325185433,1714555847709,-500.0,0.00057534,2]
[325185434,1714555847718,-500.0,0.00057534,120]
[325185435,1714555847727,-500.0,0.00057534,120]
[325185436,1714555847736,-500.0,0.00057534,120]
[325185437,1714555847746,-500.0,0.00057534,120]
[325185438,1714555847755,-500.0,0.00057534,120]
[325185439,1714555847764,-500.0,0.00057534,120]
[325185440,1714555847773,-500.30210753,0.00057534,120]
[325185441,1714555847782,-500.2459224,0.00057534,120]
[325185442,1714555847791,-500.22239692,0.00057534,120]
[325185443,1714555847800,-299.41825428,0.00057534,2]
[325185444,1714555847809,-500.0,0.00057534,120]
[325185445,1714555847818,-545.11,0.00057534,120]
[325185446,1714555847827,-500.0,0.00057534,120]
[325185447,1714555847836,-702.78,0.00057534,120]
[325185448,1714555847846,-500.0,0.00057534,120]
[325185449,1714555847856,-500.0,0.00057534,120]
[325185450,1714555847865,-500.52980158,0.00057534,120]
[325185451,1714555847875,-500.0,0.00057534,120]
[325185452,1714555847884,-500.0,0.00057534,120]
[325185453,1714555847894,-500.0,0.00057534,120]
[325185454,1714555847903,-500.0,0.00057534,120]
[325185455,1714555847911,-862.86,0.00057534,120]
[325185456,1714555847920,-500.0,0.00057534,120]
[325185457,1714555847932,-500.0,0.00057534,120]
[325185458,1714555847941,-500.0,0.00057534,120]
[325185459,1714555847950,-500.0,0.00057534,120]
[325185460,1714555847959,-1634.32,0.00057534,120]
[325185461,1714555847969,-500.0,0.00057534,120]
[325185462,1714555847978,-500.0,0.00057534,120]
[325185463,1714555847987,-500.0,0.00057534,120]
[325185464,1714555847996,-1462.07,0.00057534,120]
[325185465,1714555848005,-500.0,0.00057534,120]
[325185466,1714555848015,-500.0,0.00057534,120]
[325185467,1714555848025,-500.0,0.00057534,120]
[325185468,1714555848034,-498.65229156,0.00057534,120]
[325185469,1714555848043,-500.0,0.00057534,120]
[325185470,1714555848052,-200.76339658,0.00057534,120]
[325185471,1714555848062,-585.07,0.00057534,120]
[325185472,1714555848070,-151.0,0.00057534,120]
[325185473,1714555848080,-500.0,0.00057534,120]
[325185474,1714555848089,-500.0,0.00057534,120]
[325185475,1714555848097,-507.24258723,0.00057534,7]
[325185476,1714555848106,-631.34,0.00057534,120]
[325185477,1714555848115,-217.46866619,0.00057534,120]
[325185478,1714555848125,-500.0,0.00057534,120]
[325185479,1714555848138,-515.20690097,0.00057534,120]
[325185480,1714555848147,-500.0,0.00057534,120]
[325185481,1714555848156,-500.88448754,0.00057534,120]
[325185482,1714555848166,-500.0,0.00057534,120]
[325185483,1714555848176,-151.0,0.00057534,120]
[325185484,1714555848186,-500.2951686,0.00057534,120]
[325185485,1714555848195,-500.0,0.00057534,120]
[325185486,1714555848204,-500.0,0.00057534,120]
[325185487,1714555848217,-629.76,0.00057534,120]
[325185488,1714555848227,-501.3594868,0.00057534,120]
[325185489,1714555848237,-500.0,0.00057534,120]
[325185490,1714555848246,-500.0,0.00057534,120]
[325185491,1714555848255,-500.0,0.00057534,120]
[325185492,1714555848264,-500.23232118,0.00057534,2]
[325185493,1714555848273,-490.16426554,0.00057534,120]
[325185494,1714555848282,-845.44,0.00057534,120]
[325185495,1714555848291,-793.26,0.00057534,120]
[325185496,1714555848300,-500.0,0.00057534,120]
[325185497,1714555848309,-500.0,0.00057534,120]
[325185498,1714555848319,-500.0,0.00057534,120]
[325185499,1714555848328,-500.0,0.00057534,120]
[325185500,1714555848337,-1800.21,0.00057534,120]
[325185501,1714555848346,-500.0,0.00057534,120]
[325185502,1714555848355,-512.6,0.00057534,120]
[325185503,1714555848365,-500.0,0.00057534,120]
[325185504,1714555848374,-500.0,0.00057534,120]
[325185505,1714555848383,-2272.81,0.00057534,2]
[325185506,1714555848392,-1295.3,0.00057534,120]
[325185507,1714555848402,-500.0,0.00057534,120]
[325185508,1714555848411,-500.0,0.00057534,120]
[325185509,1714555848420,-500.0,0.00057534,120]
[325185510,1714555848431,-500.0,0.00057534,120]
[325185511,1714555848440,-2903.91,0.00057534,120]
[325185512,1714555848450,-500.0,0.00057534,120]
[325185513,1714555848459,-151.0,0.00057534,120]
[325185514,1714555848469,-500.0,0.00057534,60]
[325185515,1714555848478,-765.68,0.00057534,120]
[325185516,1714555848487,-1655.93,0.00057534,120]
[325185517,1714555848496,-500.0,0.00057534,120]
[325185518,1714555848505,-1503.25,0.00057534,120]
[325185519,1714555848515,-500.0,0.00057534,120]
[325185520,1714555848524,-500.0,0.00057534,120]
[325185521,1714555848534,-1651.19,0.00057534,120]
[325185522,1714555848543,-500.0,0.00057534,120]
[325185523,1714555848553,-500.47345922,0.00057534,120]
[325185524,1714555848562,-500.0,0.00057534,120]
[325185525,1714555848572,-501.50716194,0.00057534,120]
[325185526,1714555848581,-500.0,0.00057534,120]
[325185527,1714555848590,-500.0,0.00057534,120]
[325185528,1714555848599,-500.0,0.00057534,120]
[325185529,1714555848609,-500.0,0.00057534,120]
[325185530,1714555848618,-500.0,0.00057534,120]
[325185531,1714555848628,-500.0,0.00057534,120]
[325185532,1714555848637,-865.12,0.00057534,120]
[325185533,1714555848647,-500.0,0.00057534,120]
[325185534,1714555848656,-1212.14,0.00057534,120]
[325185535,1714555848666,-500.0,0.00057534,120]
[325185536,1714555848676,-940.52,0.00057534,120]
[325185537,1714555848686,-500.30835537,0.00057534,120]
[325185538,1714555848696,-1030.94,0.00057534,120]
[325185539,1714555848706,-500.0,0.00057534,120]
[325185540,1714555848715,-500.0,0.00057534,120]
[325185541,1714555848725,-500.0,0.00057534,120]
[325185542,1714555848734,-151.0,0.00057534,120]
[325185543,1714555848744,-500.0,0.00057534,120]
[325185544,1714555848753,-1156.7,0.00057534,120]
[325185545,1714555848763,-500.0,0.00057534,120]
[325185546,1714555848772,-151.0,0.00057534,120]
[325185547,1714555848781,-500.0,0.00057534,120]
[325185548,1714555848791,-500.0,0.00057534,120]
[325185549,1714555848800,-500.90257208,0.00057534,120]
[325185550,1714555848810,-764.43,0.00057534,120]
[325185551,1714555848819,-500.0,0.00057534,120]
[325185552,1714555848828,-500.0,0.00057534,120]
[325185553,1714555848838,-500.0,0.00057534,120]
[325185554,1714555848847,-1474.3,0.00057534,120]
[325185555,1714555848856,-207.88971763,0.00057534,120]
[325185556,1714555848865,-968.71,0.00057534,120]
[325185557,1714555848875,-500.0,0.00057534,120]
[325185558,1714555848884,-331.55185091,0.00057534,120]
[325185559,1714555848895,-151.26979,0.00057534,120]
[325185560,1714555848904,-988.3,0.00057534,120]
[325185561,1714555848913,-500.0,0.00057534,120]
[325185562,1714555848923,-151.26979,0.00057534,120]
[325185563,1714555848933,-500.0,0.00057534,120]
[325185564,1714555848942,-500.0,0.00057534,120]
[325185565,1714555848952,-2541.08,0.00057534,120]
[325185566,1714555848962,-838.87,0.00057534,120]
[325185567,1714555848971,-500.0,0.00057534,120]
[325185568,1714555848980,-500.0,0.00057534,120]
[325185569,1714555848989,-151.0,0.00057534,120]
[325185570,1714555848999,-500.0,0.00057534,120]
[325185571,1714555849008,-500.0,0.00057534,120]
[325185572,1714555849017,-500.0,0.00057534,120]
[325185573,1714555849026,-500.0,0.00057534,120]
[325185574,1714555849036,-5984.81,0.00057534,120]
[325185575,1714555849045,-500.0,0.00057534,120]
[325185576,1714555849054,-500.0,0.00057534,120]
[325185577,1714555849063,-500.0,0.00057534,120]
[325185578,1714555849072,-500.81804332,0.00057534,120]
[325185579,1714555849082,-1987.19,0.00057534,120]
[325185580,1714555849091,-560.4668922,0.00057534,120]
[325185581,1714555849100,-582.91,0.00057534,120]
[325185582,1714555849109,-500.0,0.00057534,120]
[325185583,1714555849118,-4242.62,0.00057534,120]
[325185584,1714555849132,-300.16164303,0.00057534,120]
[325185585,1714555849141,-500.0,0.00057534,120]
[325185586,1714555849150,-603.54,0.00057534,120]
[325185587,1714555849160,-535.82,0.00057534,120]
[325185588,1714555849169,-151.0,0.00057534,120]
[325185589,1714555849180,-500.0,0.00057534,120]
[325185590,1714555849189,-500.61554643,0.00057534,20]
[325185591,1714555849198,-1146.51,0.00057534,120]
[325185592,1714555849209,-646.42,0.00057534,120]
[325185593,1714555849218,-500.0,0.00057534,120]
[325185594,1714555849227,-500.0,0.00057534,120]
[325185595,1714555849236,-500.0,0.00057534,120]
[325185596,1714555849245,-172.70702438,0.00057534,120]
[325185597,1714555849254,-500.0,0.00057534,120]
[325185598,1714555849263,-500.0,0.00057534,120]
[325185599,1714555849273,-1296.38,0.00057534,120]
[325185600,1714555849282,-500.0,0.00057534,120]
[325185601,1714555849291,-500.0,0.00057534,120]
[325185602,1714555849300,-506.31036054,0.00057534,120]
[325185603,1714555849310,-500.0,0.00057534,120]
[325185604,1714555849319,-350.653558,0.00057534,60]
[325185605,1714555849328,-500.0,0.00057534,120]
[325185606,1714555849337,-500.0,0.00057534,120]
[325185607,1714555849347,-350.653558,0.00057534,60]
[325185608,1714555849356,-500.0,0.00057534,120]
[325185609,1714555849365,-500.0,0.00057534,120]
[325185610,1714555849375,-500.0,0.00057534,120]
[325185611,1714555849385,-500.0,0.00057534,120]
[325185612,1714555849395,-500.0,0.00057534,120]
[325185613,1714555849404,-500.0,0.00057534,120]
[325185614,1714555849413,-500.0,0.00057534,120]
[325185615,1714555849422,-671.37,0.00057534,120]
[325185616,1714555849432,-500.0,0.00057534,120]
[325185617,1714555849440,-500.0,0.00057534,120]
[325185618,1714555849450,-1636.04,0.00057534,120]
[325185619,1714555849459,-500.0,0.00057534,120]
[325185620,1714555849469,-500.0,0.00057534,120]
[325185621,1714555849478,-500.0,0.00057534,120]
[325185622,1714555849488,-6004.16,0.00057534,120]
[325185623,1714555849496,-500.0,0.00057534,120]
[325185624,1714555849506,-500.0,0.00057534,120]
[325185625,1714555849648,-500.0,0.00057534,120]
[325185626,1714555849658,-500.0,0.00057534,120]
[325185627,1714555849668,-504.49291163,0.00057534,120]
[325185628,1714555849677,-500.0,0.00057534,120]
[325185629,1714555849687,-500.0,0.00057534,120]
[325185630,1714555849696,-500.0,0.00057534,120]
[325185631,1714555849706,-500.0,0.00057534,120]
[325185632,1714555849715,-619.83,0.00057534,120]
[325185633,1714555849724,-500.0,0.00057534,120]
[325185634,1714555849734,-500.0,0.00057534,120]
[325185635,1714555849743,-500.0,0.00057534,120]
[325185636,1714555849753,-586.79,0.00057534,120]
[325185637,1714555849762,-2588.49,0.00057534,120]
[325185638,1714555849771,-500.0,0.00057534,120]
[325185639,1714555849780,-2938.39,0.00057534,120]
[325185640,1714555849790,-663.57,0.00057534,120]
[325185641,1714555849799,-500.0,0.00057534,120]
[325185642,1714555849808,-514.07339501,0.00057534,120]
[325185643,1714555849817,-500.0,0.00057534,120]
[325185644,1714555849826,-187.33565465,0.00057534,120]
[325185645,1714555849835,-500.0,0.00057534,120]
[325185646,1714555849845,-1052.57,0.00057534,120]
[325185647,1714555849854,-500.0,0.00057534,120]
[325185648,1714555849863,-500.0,0.00057534,120]
[325185649,1714555849872,-635.63,0.00057534,120]
[325185650,1714555849881,-151.0,0.00057534,14]
[325185651,1714555849890,-500.65826025,0.00057534,120]
[325185652,1714555849899,-500.0,0.00057534,120]
[325185653,1714555849908,-508.35994919,0.00057534,120]
[325185654,1714555849918,-151.0,0.00057534,120]
[325185655,1714555849927,-500.0,0.00057534,120]
[325185656,1714555849937,-500.0,0.00057534,120]
[325185657,1714555849946,-500.0,0.00057534,120]
[325185658,1714555849955,-3548.21,0.00057534,120]
[325185659,1714555849964,-603.28,0.00057534,2]
[325185660,1714555849975,-267.765277,0.00057534,120]
[325185661,1714555849984,-500.0,0.00057534,120]
[325185662,1714555849993,-439.09810089,0.00057534,120]
[325185663,1714555850003,-500.0,0.00057534,120]
[325185664,1714555850012,-500.80775492,0.00057534,120]
[325185665,1714555850021,-500.0,0.00057534,120]
[325185666,1714555850030,-500.0,0.00057534,120]
[325185667,1714555850040,-500.0,0.00057534,120]
[325185668,1714555850048,-500.0,0.00057534,120]
[325185669,1714555850058,-1310.69,0.00057534,120]
[325185670,1714555850067,-500.0,0.00057534,120]
[325185671,1714555850077,-657.01,0.00057534,120]
[325185672,1714555850086,-500.0,0.00057534,120]
[325185673,1714555850096,-300.0,0.00057534,2]
[325185674,1714555850105,-500.0,0.00057534,120]
[325185675,1714555850114,-524.83914311,0.00057534,120]
[325185676,1714555850125,-1172.22,0.00057534,120]
[325185677,1714555850137,-500.0,0.00057534,120]